Cogmind - Beta 11.1 @@@ ROGUE MODE // 2022.05.20 @ 14:46:58 // AFD2020/Player2 Player: Jamuson Result: Core destroyed Performance ------------- Evolutions (4) 2000 Regions Visited (17) 3400 Robots Destroyed (157) 785 Value Destroyed (5667) 5667 Prototype IDs (61) 1220 Alien Tech Used (0) 0 Bonus (4883) 4883 TOTAL SCORE: 17955 Bonus ------- High Alert Combat Kills 1258 Follower Combat Kills 4021 Aligned with FarCom 300 Met Data Miner 300 Met R17 at Cetus 500 Friendly Fire -1496 Cogmind --------- Core Integrity 0/850 Matter 176/300 Energy 350/350 System Corruption 3% Temperature Cool (0) Movement Treading (166) Location -6/Hub_04(d) Parts ------- > --- POWER (1) -------- Quantum Reactor > --- PROPULSION (4) --- Armored Treads Armored Treads Centrium Heavy Treads > --- UTILITY (7) ------ Advanced Heat Sink Large Storage Unit Improved Targeting Computer Armor Integrity Analyzer Centrium Medium Armor Plating Improved Hacking Suite Improved Hacking Suite > --- WEAPON (3) ------- Gauss Rifle KE Penetrator Advanced KE Penetrator > --- INVENTORY (15) --- Quantum Reactor Centrium Heavy Treads Superbattery (1500) Phase Shifter Centrium Medium Armor Plating Centrium Medium Armor Plating Centrium Medium Armor Plating Advanced Variable Charge Gun Coil Gun Advanced KE Penetrator Advanced KE Penetrator Missile Launcher Axe Peak State ------------ > --- POWER ------------ Quantum Reactor > --- PROPULSION ------- Centrium Heavy Treads Centrium Heavy Treads > --- UTILITY ---------- Advanced Heat Sink Large Storage Unit Improved Targeting Computer Armor Integrity Analyzer Centrium Medium Armor Plating Improved Hacking Suite Improved Hacking Suite > --- WEAPON ----------- Advanced Variable Charge Gun Coil Gun Coil Gun > --- INVENTORY -------- Quantum Reactor Armored Treads Armored Treads Medium Treads Superbattery Centrium Medium Armor Plating Centrium Medium Armor Plating Centrium Medium Armor Plating Gauss Rifle Flak Gun Advanced KE Penetrator Advanced KE Penetrator Advanced KE Penetrator Missile Launcher Axe [Rating: 103] Favorites ----------- Power Nuclear Core Engine Heavy Ion Engine Power Core Nuclear Core Reactor Quantum Reactor Propulsion Armored Treads Treads Armored Treads Leg Aluminum Leg Wheel Compact Wheel Utility Large Storage Unit Device Advanced Heat Sink Storage Large Storage Unit Processor Improved Targeting Computer Hackware Improved Hacking Suite Protection Improved Medium Armor Plating Weapon Precision Beam Rifle Energy Gun Precision Beam Rifle Energy Cannon Particle Cannon Ballistic Gun Coil Gun Launcher Grenade Launcher Impact Weapon Hammer Slashing Weapon Axe Build | -11 -10 -10 -9 -9 -9 -8 -8 -7 -7 -7 -7 -6 -6 -6 -6 -6 -6 ------- Run | Scr Mat Min Mat Min Exi Min Mat Fac Low Low Dat Pro Fac Ext Cet Arc Hub Slots Evolved 8 | . . . 2 . . . 2 2 . . . . 2 . . . . Power . | . . . . . . . . . . . . . . . . . . Propulsion 2 | . . . . . . . 1 . . . . . 1 . . . . Utility 5 | . . . 1 . . . 1 2 . . . . 1 . . . . Weapon 1 | . . . 1 . . . . . . . . . . . . . . Parts Attached 130 | . 6 1 17 2 . 2 19 18 5 . . . 23 22 12 . 3 Power 8 | . . . 1 . . . 1 1 . . . . 2 2 1 . . Engine 5 | . . . 1 . . . 1 . . . . . 1 2 . . . Core 2 | . . . . . . . . 1 . . . . 1 . . . . Reactor 1 | . . . . . . . . . . . . . . . 1 . . Propulsion 23 | . . . 2 1 . . 4 2 3 . . . 4 3 4 . . Treads 14 | . . . . . . . . . 3 . . . 4 3 4 . . Leg . | . . . . . . . . . . . . . . . . . . Wheel 9 | . . . 2 1 . . 4 2 . . . . . . . . . Hover . | . . . . . . . . . . . . . . . . . . Flight . | . . . . . . . . . . . . . . . . . . Utility 41 | . 2 . 3 . . . 8 9 2 . . . 10 6 1 . . Device 17 | . . . 2 . . . 3 4 1 . . . 3 4 . . . Storage 4 | . 1 . . . . . 1 1 . . . . 1 . . . . Processor 5 | . 1 . 1 . . . . . . . . . 2 1 . . . Hackware 4 | . . . . . . . . 2 . . . . 2 . . . . Protection 11 | . . . . . . . 4 2 1 . . . 2 1 1 . . Artifact . | . . . . . . . . . . . . . . . . . . Weapon 58 | . 4 1 11 1 . 2 6 6 . . . . 7 11 6 . 3 Energy Gun 25 | . 1 . 6 . . . 4 5 . . . . 5 3 1 . . Energy Cannon 5 | . . . 3 . . 1 1 . . . . . . . . . . Ballistic Gun 18 | . 2 . 2 . . . . . . . . . . 7 4 . 3 Ballistic Cannon . | . . . . . . . . . . . . . . . . . . Launcher 8 | . . 1 . 1 . 1 1 1 . . . . 1 1 1 . . Special Weapon . | . . . . . . . . . . . . . . . . . . Impact Weapon 1 | . 1 . . . . . . . . . . . . . . . . Slashing Weapon 1 | . . . . . . . . . . . . . 1 . . . . Piercing Weapon . | . . . . . . . . . . . . . . . . . . Special Melee Weapon . | . . . . . . . . . . . . . . . . . . Unidentified Prototypes 7 | . . . 2 . . . 1 . . . . . . . 4 . . Parts Lost 25 | . . . 4 . . . 1 8 . . . . 7 5 . . . Power 3 | . . . . . . . . 1 . . . . 1 1 . . . Propulsion 3 | . . . . . . . . 2 . . . . . 1 . . . Utility 11 | . . . 1 . . . 1 3 . . . . 4 2 . . . Weapon 8 | . . . 3 . . . . 2 . . . . 2 1 . . . Highest Loss Streak 4 | . . . 2 . . . 1 3 . . . . 4 2 . . . To Critical Strikes . | . . . . . . . . . . . . . . . . . . Average Slot Usage (%) 96 | . 92 100 94 100 100 100 97 93 100 100 100 100 91 97 97 93 92 Engine 5 | . 14 14 11 11 11 11 9 3 . . . . 1 4 . . . Core 2 | . . . . . . . . 3 7 7 7 7 3 1 . . . Treads 12 | . . . . . . . . . 17 23 23 23 25 25 23 20 20 Leg 3 | . 28 28 . . . . . . . . . . . . . . . Wheel 7 | . . . 22 22 22 22 24 20 5 . . . . . . . . Device 9 | . . . 6 11 11 11 9 14 21 15 15 15 8 6 6 6 6 Storage 8 | . 14 14 11 11 11 11 9 7 7 7 7 7 6 6 6 6 6 Processor 7 | . 7 14 11 11 11 11 9 2 . . . . 6 11 13 13 13 Hackware 8 | . . . . . . . . 13 15 15 15 15 9 13 13 13 13 Protection 4 | . . . . . . . 8 4 1 7 7 7 6 5 6 6 6 Energy Gun 16 | . 16 14 23 . . . 19 22 23 23 23 23 19 9 1 6 4 Energy Cannon 2 | . . . 5 22 22 27 6 . . . . . . . . . . Ballistic Gun 3 | . 8 . 3 . . . . . . . . . . 9 18 13 15 Naked Turns . | . . . . . . . . . . . . . . . . . . Heaviest Build 64 | 13 30 31 41 40 40 41 46 46 45 45 45 45 53 53 64 63 63 Greatest Support 160 | 20 20 20 26 26 26 26 38 42 60 60 60 60 82 80 160 120 120 Greatest Overweight (x) 2 | . 1 1 1 1 1 1 1 2 . . . . . . 1 . . Average Overweight (x) . | . . 1 1 1 1 1 . . . . . . . . . . . Largest Inventory Capacity 25 | . 15 15 15 15 15 15 15 25 15 15 15 15 15 15 15 15 15 Average Capacity 14 | . 8 15 15 15 15 15 15 15 15 15 15 15 15 15 15 15 15 Most Carried 15 | . 8 8 15 15 15 15 15 15 15 15 15 15 15 15 15 15 15 Average Carried 13 | . 6 8 10 14 14 14 14 14 14 15 15 14 14 14 14 14 14 Final Capacity 15 | 8 15 15 15 15 15 15 15 15 15 15 15 15 15 15 15 15 15 Final Carried 15 | 6 8 8 14 15 15 15 15 15 15 15 15 15 15 13 15 15 14 Class Distribution -------------------- 19% | Scavenger-Gunner 18% | Mutant 16% | Hacker-Skirmisher 14% | Skirmisher 14% | Hacker-Tank 7% | Gunner 4% | Hacker-Gunner Dominant Class ---------------- Mutant | -10/Materials Mutant | -10/Mines Gunner | -9/Materials Mutant | -9/Mines Mutant | -9/Exiles Skirmisher | -8/Mines Skirmisher | -8/Materials Hacker-Skirmisher | -7/Factory Hacker-Gunner | -7/Lower Caves Hacker-Tank | -7/Lower Caves Hacker-Tank | -7/Data Miner Hacker-Tank | -6/Proximity Caves Hacker-Skirmisher | -6/Factory Scavenger-Gunner | -6/Extension Scavenger-Gunner | -6/Cetus Scavenger-Gunner | -6/Archives Scavenger-Gunner | -6/Hub_04(d) Resources | -11 -10 -10 -9 -9 -9 -8 -8 -7 -7 -7 -7 -6 -6 -6 -6 -6 -6 ----------- Run | Scr Mat Min Mat Min Exi Min Mat Fac Low Low Dat Pro Fac Ext Cet Arc Hub Matter Collected 2727 | 200 98 40 202 38 . 67 243 203 95 10 . . 278 464 442 85 262 Remotely . | . . . . . . . . . . . . . . . . . . Salvage Created 6173 | . 266 14 804 71 . 55 1205 702 89 102 . 106 1212 501 329 231 486 Parts 297 | . 22 2 45 14 . 4 52 22 3 6 . 4 43 24 21 6 29 Haulers Intercepted 8 | . 1 . 2 . . . 3 . . . . . 1 . . . 1 Recyclers Shooed 6 | . 1 . . 1 . . 1 . . . . . . 3 . . . Parts Field Recycled . | . . . . . . . . . . . . . . . . . . Retrieved Matter . | . . . . . . . . . . . . . . . . . . Parts Self-Destructed 30 | . . . . . . . . . 8 7 . 15 . . . . . Prevented . | . . . . . . . . . . . . . . . . . . Kills | -11 -10 -10 -9 -9 -9 -8 -8 -7 -7 -7 -7 -6 -6 -6 -6 -6 -6 ------- Run | Scr Mat Min Mat Min Exi Min Mat Fac Low Low Dat Pro Fac Ext Cet Arc Hub Combat Hostiles Destroyed 116 | . 9 1 16 6 . 2 15 12 2 4 . 2 20 9 10 3 5 Guns 94 | . 9 1 16 . . . 13 8 2 4 . 2 16 8 7 3 5 Cannons 6 | . . . . 2 . 2 2 . . . . . . . . . . AOE 11 | . . . . 4 . . . 2 . . . . 2 . 3 . . Classes Destroyed 16 | . 4 . 4 . . 1 3 . . . . . 2 2 . . . Worker 7 | . . . . . . . 2 1 . . . . 1 . . . 3 Builder 9 | . 1 . . 1 . . 4 . . . . . 1 . . . 2 Hauler 8 | . 1 . 2 . . . 3 . . . . . 1 . . . 1 Recycler 3 | . . . . . . . 1 . . . . . 2 . . . . Operator 2 | . . . 2 . . . . . . . . . . . . . . Watcher 12 | . . . 1 . . . 2 4 . . . . 2 1 1 . 1 Swarmer 31 | . 7 1 4 6 . 1 . . . 4 . . 1 . 7 . . Saboteur 1 | . . . . . . . . . . . . . 1 . . . . Grunt 45 | . 2 . 7 . . . 9 8 2 . . . 12 1 1 . 3 Brawler 4 | . . . 1 . . . 1 . . . . . 1 . 1 . . Duelist 3 | . . . . . . . 1 1 . . . 1 . . . . . Protector 1 | . . . . . . . . . . . . . . 1 . . . Sentry 19 | . . . 4 . . . 4 3 . . . 1 1 2 . 3 1 Hunter 8 | . . . . . . 1 . . . . . . 3 3 . . 1 Programmer 1 | . . . . . . . . . . . . . 1 . . . . Behemoth 2 | . . . . . . . . . . . . . . 2 . . . Cetus Guard 1 | . . . . . . . . . . . . . . . 1 . . Best Kill Streak 7 | . 3 1 4 5 . 1 5 4 1 2 . 1 7 6 7 3 6 Combat Bots Only 7 | . 3 1 4 4 . 1 4 4 1 2 . 1 6 6 7 3 2 Max Kills in Single Turn 3 | . 1 1 2 3 . 1 3 2 1 2 . 1 2 1 3 1 2 Gunslinging 1 | . . . 1 . . . . . . 1 . . . . . . . Exploded 3 | . . . . 2 . . . 2 . . . . 1 . 3 . . Melee . | . . . . . . . . . . . . . . . . . . Uniques/NPCs Destroyed . | . . . . . . . . . . . . . . . . . . Combat | -11 -10 -10 -9 -9 -9 -8 -8 -7 -7 -7 -7 -6 -6 -6 -6 -6 -6 -------- Run | Scr Mat Min Mat Min Exi Min Mat Fac Low Low Dat Pro Fac Ext Cet Arc Hub Damage Taken 6948 | . 178 . 510 28 . 6 338 919 114 143 . 86 1659 2030 196 50 691 Core 652 | . 70 . 49 . . . 45 104 . 16 . . 217 134 . . 17 Absorbed by Shields . | . . . . . . . . . . . . . . . . . . Regen/Repaired (Parts) 463 | . . . . . . . . 71 . . . . 183 209 . . . Core Remaining (%) 70 | 100 . 60 . . . 43 68 . . . . 81 . . . . . Volleys Fired 355 | . 24 2 42 4 . 4 50 40 6 4 . 7 57 50 25 7 33 Largest 3 | . 2 1 3 2 . 3 3 3 3 3 . 3 3 3 3 3 3 Hottest 224 | . 90 65 204 136 . 204 204 202 204 204 . 204 210 224 88 140 140 Shots Fired 931 | . 48 2 112 6 . 9 138 110 15 12 . 18 155 130 70 16 90 Gun 860 | . 48 2 99 . . . 105 107 15 12 . 18 151 129 68 16 90 Cannon 55 | . . . 13 4 . 9 29 . . . . . . . . . . Launcher 16 | . . . . 2 . . 4 3 . . . . 4 1 2 . . Special . | . . . . . . . . . . . . . . . . . . Kinetic 263 | . 18 . 18 . . . . . . . . . . 61 68 14 84 Thermal 596 | . 30 2 38 4 . 9 134 107 15 12 . 18 151 68 . 2 6 Explosive 16 | . . . . 2 . . 4 3 . . . . 4 1 2 . . Electromagnetic 56 | . . . 56 . . . . . . . . . . . . . . Robot Hit Streak 31 | . 5 1 11 7 . 10 17 24 14 4 . 7 31 21 10 15 16 Robot Miss Streak 5 | . 3 1 5 . . 3 2 4 3 2 . 2 2 4 3 1 5 Penetration Max 1 | . . . . . . . . . . . . . . 1 1 . 1 Secondary Targets 20 | . 1 . 4 . . . 4 2 1 1 . . 5 1 . . 1 Max Gunslinging Chain 2 | . 1 . 2 . . . 1 1 1 1 . . 1 1 . . 1 Shots Hit Robots 691 | . 25 1 81 4 . 4 106 79 13 9 . 15 137 96 43 13 65 Core Hits 354 | . 12 1 39 7 . 4 45 48 5 6 . 9 81 39 25 5 28 Critical Kills 2 | . . . . . . . . . . . . . . . . . 2 Critical Parts Destroyed 6 | . . . 1 . . . . . . . . . . 4 . . 1 Critical Strikes 40 | . . . 3 . . . 5 9 . . . 1 9 9 . . 4 Burn 31 | . . . 2 . . . 5 9 . . . 1 9 5 . . . Destroy 9 | . . . 1 . . . . . . . . . . 4 . . 4 Melee Attacks 4 | . 3 . . . . . . . . . . . 1 . . . . Impact 3 | . 3 . . . . . . . . . . . . . . . . Slashing 1 | . . . . . . . . . . . . . 1 . . . . Piercing . | . . . . . . . . . . . . . . . . . . Sneak Attacks 1 | . 1 . . . . . . . . . . . . . . . . Combat Hostiles . | . . . . . . . . . . . . . . . . . . Follow-up Attacks . | . . . . . . . . . . . . . . . . . . Damage Inflicted 16650 | . 435 17 1631 371 . 128 2196 1923 260 156 . 297 3397 2467 1236 252 1884 Guns 13698 | . 372 17 1191 . . . 1599 1577 260 156 . 297 2696 2449 948 252 1884 Cannons 780 | . . . 135 46 . 128 471 . . . . . . . . . . Explosions 2095 | . . . 305 325 . . 112 346 . . . . 701 18 288 . . Melee 60 | . 60 . . . . . . . . . . . . . . . . Ramming 17 | . 3 . . . . . 14 . . . . . . . . . . Kinetic 4509 | . 78 . 247 . . . . . . . . . . 1280 948 212 1744 Thermal 9589 | . 294 17 699 46 . 128 2070 1577 260 156 . 297 2696 1169 . 40 140 Explosive 1853 | . . . 63 325 . . 112 346 . . . . 701 18 288 . . Electromagnetic 622 | . . . 622 . . . . . . . . . . . . . . Impact 60 | . 60 . . . . . . . . . . . . . . . . Slashing . | . . . . . . . . . . . . . . . . . . Piercing . | . . . . . . . . . . . . . . . . . . Highest Corruption 4 | . . . . . . . 3 4 4 . . . 2 2 2 2 3 Average Corruption 2 | . . . . . . . 2 3 2 . . . 1 2 2 2 2 Corruption Purged 5 | . . . . . . . . . 4 . . . 1 . . . . Corruption Blocked . | . . . . . . . . . . . . . . . . . . Effects 70 | . . . . . . . 6 29 1 . . . 7 11 7 3 6 Message Errors 13 | . . . . . . . 1 6 . . . . . 3 1 . 2 Matter Fused 21 | . . . . . . . 1 9 . . . . 2 4 3 . 2 Heat Flow Errors 4 | . . . . . . . . 1 . . . . 2 . 1 . . Energy Discharges 11 | . . . . . . . . 5 1 . . . 1 1 1 . 2 Data Loss (minor) 9 | . . . . . . . 1 6 . . . . 1 . . 1 . Data Loss (major) 3 | . . . . . . . 1 . . . . . . 1 1 . . Misfires 6 | . . . . . . . 2 2 . . . . . 1 . 1 . Alerts 2 | . . . . . . . . . . . . . 1 1 . . . Weapon Failures 1 | . . . . . . . . . . . . . . . . 1 . Overload Shots . | . . . . . . . . . . . . . . . . . . Overflow Damage 227 | . 20 . 104 50 . 3 7 . . . . . . . 43 . . Projectiles 30 | . . . 20 . . 3 7 . . . . . . . . . . Explosions 177 | . . . 84 50 . . . . . . . . . . 43 . . Melee 20 | . 20 . . . . . . . . . . . . . . . . Knockbacks 1 | . 1 . . . . . . . . . . . . . . . . Impact 1 | . 1 . . . . . . . . . . . . . . . . Kinetic . | . . . . . . . . . . . . . . . . . . Secondary . | . . . . . . . . . . . . . . . . . . Self-Inflicted Damage 172 | . . . 122 . . . 6 . . . . . . . 44 . . Shots 4 | . . . 3 . . . . . . . . . . . 1 . . Rammed 2 | . . . . . . . 2 . . . . . . . . . . Targets Rammed 3 | . 1 . . . . . 2 . . . . . . . . . . Kicked 1 | . 1 . . . . . . . . . . . . . . . . Crushed . | . . . . . . . . . . . . . . . . . . Highest Temperature 452 | . 180 48 426 78 . 108 369 223 171 144 . 153 452 386 100 6 54 Average Temperature 111 | . 64 26 120 41 . 53 134 82 71 63 . 61 128 160 46 4 24 Received Heat Transfer 1529 | . 24 . 99 . . . 153 294 63 . . 24 443 345 18 . 66 Effects 10 | . . . 3 . . . 2 . . . . . 2 3 . . . Shutdowns 3 | . . . 1 . . . . . . . . . . 2 . . . Energy Bleed 4 | . . . . . . . 2 . . . . . 1 1 . . . Interference 1 | . . . . . . . . . . . . . 1 . . . . Short Circuit 1 | . . . 1 . . . . . . . . . . . . . . Damage (minor) 1 | . . . 1 . . . . . . . . . . . . . . Siege Activations . | . . . . . . . . . . . . . . . . . . Robots Corrupted . | . . . . . . . . . . . . . . . . . . Combat Hostiles . | . . . . . . . . . . . . . . . . . . Parts Fried 4 | . 1 . 3 . . . . . . . . . . . . . . Impact Corruptions 2 | . 2 . . . . . . . . . . . . . . . . Robots Melted 5 | . . . . . . . . 2 . . . . 2 1 . . . Combat Hostiles 5 | . . . . . . . . 2 . . . . 2 1 . . . Parts Melted 50 | . . . 6 2 . 2 8 9 1 1 . 2 13 4 . 1 1 Heat Transferred 21875 | . 680 37 1321 74 . 166 4403 4001 546 347 . 707 6521 2850 . 37 185 Parts Sabotaged . | . . . . . . . . . . . . . . . . . . Parts Stolen . | . . . . . . . . . . . . . . . . . . Parts Stripped . | . . . . . . . . . . . . . . . . . . Power Chain Reactions 3 | . . . 3 . . . . . . . . . . . . . . Missiles Intercepted . | . . . . . . . . . . . . . . . . . . Alert | -11 -10 -10 -9 -9 -9 -8 -8 -7 -7 -7 -7 -6 -6 -6 -6 -6 -6 ------- Run | Scr Mat Min Mat Min Exi Min Mat Fac Low Low Dat Pro Fac Ext Cet Arc Hub Peak Influence 1392 | . 340 102 1154 700 . 114 994 773 . . . . 1392 912 825 382 275 Initial 659 | . . 3 39 450 . . 44 452 . . . . . 659 302 250 133 Average 480 | . 115 4 573 652 . 56 447 495 . . . . 787 674 561 358 160 Maximum Alert Level 4 | . 1 . 4 3 . . 3 3 . . . . 4 3 3 1 1 Low Security (%) 28 | . 84 100 17 . . 100 15 3 . . . . 32 . . . 68 Level 1 13 | . 15 . 2 . . . 48 12 . . . . . . 8 100 31 Level 2 33 | . . . 47 53 . . 16 76 . . . . 11 44 85 . . Level 3 16 | . . . 29 46 . . 19 7 . . . . 8 55 5 . . Level 4 7 | . . . 3 . . . . . . . . . 47 . . . . Level 5 . | . . . . . . . . . . . . . . . . . . High Security . | . . . . . . . . . . . . . . . . . . Max Security . | . . . . . . . . . . . . . . . . . . Squads Dispatched 46 | . 2 . 6 . . . 5 9 . . . . 11 6 . . 7 Investigation 19 | . 2 . 5 . . . 4 3 . . . . 1 4 . . . Extermination 4 | . . . . . . . . 3 . . . . 1 . . . . Reinforcement 13 | . . . 1 . . . . 2 . . . . 3 1 . . 6 Assault 8 | . . . . . . . 1 1 . . . . 5 1 . . . Garrison 2 | . . . . . . . . . . . . . 1 . . . 1 Intercept . | . . . . . . . . . . . . . . . . . . Searches Triggered . | . . . . . . . . . . . . . . . . . . Data Miner Redirects 9 | . . . . . . . . . . . . . 3 6 . . . Construction Impeded 3 | . . . . . . . . . . . . . 1 . . . 2 Haulers Reinforced 3 | . . . . . . . . . . . . . 2 . . . 1 Active Scanning Responses . | . . . . . . . . . . . . . . . . . . Cargo Convoy Interrupts . | . . . . . . . . . . . . . . . . . . Stealth | -11 -10 -10 -9 -9 -9 -8 -8 -7 -7 -7 -7 -6 -6 -6 -6 -6 -6 --------- Run | Scr Mat Min Mat Min Exi Min Mat Fac Low Low Dat Pro Fac Ext Cet Arc Hub Distress Signals 18 | . 2 . 2 . . . 3 2 . . . . 1 3 2 . 3 Communications Jammed . | . . . . . . . . . . . . . . . . . . Distress Signals . | . . . . . . . . . . . . . . . . . . Times Spotted 270 | . 16 3 35 7 . 4 39 32 6 7 . 5 44 29 18 7 18 Peak Tracking Total 8 | . 5 3 5 4 . 3 8 5 3 3 . 4 7 7 5 2 5 Tactical Retreats . | . . . . . . . . . . . . . . . . . . Traps | -11 -10 -10 -9 -9 -9 -8 -8 -7 -7 -7 -7 -6 -6 -6 -6 -6 -6 ------- Run | Scr Mat Min Mat Min Exi Min Mat Fac Low Low Dat Pro Fac Ext Cet Arc Hub Traps Triggered 9 | . 1 . . . . . 2 4 . . . . 2 . . . . Indirectly . | . . . . . . . . . . . . . . . . . . Trap Hack Attempts . | . . . . . . . . . . . . . . . . . . Triggered . | . . . . . . . . . . . . . . . . . . Disarmed . | . . . . . . . . . . . . . . . . . . Reprogrammed . | . . . . . . . . . . . . . . . . . . Reused . | . . . . . . . . . . . . . . . . . . Traps Extracted . | . . . . . . . . . . . . . . . . . . Installed . | . . . . . . . . . . . . . . . . . . Triggered . | . . . . . . . . . . . . . . . . . . Machines | -11 -10 -10 -9 -9 -9 -8 -8 -7 -7 -7 -7 -6 -6 -6 -6 -6 -6 ---------- Run | Scr Mat Min Mat Min Exi Min Mat Fac Low Low Dat Pro Fac Ext Cet Arc Hub Machines Disabled 32 | . . 1 11 . . . 3 . . . . . 15 . . . 2 Max in Single Turn 3 | . . . 3 . . . 1 . . . . . . . . . . Garrison Access 1 | . . . . . . . . . . . . . 1 . . . . Machines Sabotaged . | . . . . . . . . . . . . . . . . . . Garrisons Compromised . | . . . . . . . . . . . . . . . . . . Overloaded Fab Kills . | . . . . . . . . . . . . . . . . . . Hacking | -11 -10 -10 -9 -9 -9 -8 -8 -7 -7 -7 -7 -6 -6 -6 -6 -6 -6 --------- Run | Scr Mat Min Mat Min Exi Min Mat Fac Low Low Dat Pro Fac Ext Cet Arc Hub Machines Accessed 64 | . 9 . 11 . 1 . 10 9 1 . 4 . 2 15 . . 2 Terminals 50 | . 8 . 9 . . . 10 8 . . . . 1 12 . . 2 Fabricators . | . . . . . . . . . . . . . . . . . . Repair Stations 3 | . . . . . . . . 1 . . . . 1 1 . . . Recycling Units 5 | . 1 . 2 . . . . . . . . . . 2 . . . Scanalyzers . | . . . . . . . . . . . . . . . . . . Garrison Access . | . . . . . . . . . . . . . . . . . . Total Hacks 211 | . 31 . 28 . 1 . 40 31 1 . 27 . 8 36 . . 8 Successful 138 | . 18 . 18 . 1 . 21 19 1 . 27 . 6 22 . . 5 Failed 71 | . 13 . 10 . . . 18 11 . . . . 2 14 . . 3 Catastrophic 7 | . 2 . . . . . 1 1 . . . . 1 1 . . 1 Database Lockouts 2 | . . . . . . . 1 1 . . . . . . . . . Manual 110 | . 20 . 18 . 1 . 24 19 . . . . 4 16 . . 8 Terminals 170 | . 30 . 26 . . . 40 28 . . . . 6 32 . . 8 Fabricators . | . . . . . . . . . . . . . . . . . . Repair Stations 7 | . . . . . . . . 3 . . . . 2 2 . . . Recycling Units 5 | . 1 . 2 . . . . . . . . . . 2 . . . Scanalyzers . | . . . . . . . . . . . . . . . . . . Garrison Access . | . . . . . . . . . . . . . . . . . . Terminal Hacks 102 | . 13 . 12 . 1 . 15 12 1 . 27 . 3 14 . . 4 Record 11 | . . . . . . . . . . . 11 . . . . . . Part Schematic 9 | . . . . . . . . . . . 9 . . . . . . Robot Schematic 4 | . . . . . . . . . . . 4 . . . . . . Robot Analysis 13 | . 4 . 2 . . . 2 2 . . . . . 3 . . . Prototype ID Bank 13 | . 1 . 2 . . . 4 1 . . 3 . 1 1 . . . Open Door 5 | . . . . . . . . . 1 . . . . 4 . . . Level Access Points 1 | . . . . . . . . . . . . . . . . . 1 Branch Access Points 5 | . 1 . 1 . . . 1 1 . . . . 1 . . . . Terminal Index 9 | . 1 . 2 . . . 1 2 . . . . 1 1 . . 1 Alert Level 10 | . 2 . 1 . . . 3 2 . . . . . 2 . . . Unreport Threat 8 | . 1 . . . . . . 4 . . . . . 2 . . 1 Locate Traps 2 | . . . . . . . 1 . . . . . . 1 . . . Security Status 1 | . . . . . . . 1 . . . . . . . . . . Patrol Status 1 | . . . . . . . 1 . . . . . . . . . . Transport Status 1 | . 1 . . . . . . . . . . . . . . . . Recall Investigation 1 | . . . 1 . . . . . . . . . . . . . . Recall Reinforcements 1 | . . . . . . . . . . . . . . . . . 1 Hauler Manifests 1 | . . . 1 . . . . . . . . . . . . . . Registered Components 2 | . . . 1 . . . 1 . . . . . . . . . . Registered Prototypes 2 | . 1 . 1 . . . . . . . . . . . . . . Zone Layout 1 | . 1 . . . . . . . . . . . . . . . . EX-Prototype ID Bank 1 | . . . . . 1 . . . . . . . . . . . . Fabricator Hacks . | . . . . . . . . . . . . . . . . . . Repair Station Hacks 6 | . . . . . . . . 2 . . . . 2 2 . . . Scan Component 3 | . . . . . . . . 1 . . . . 1 1 . . . Repair 3 | . . . . . . . . 1 . . . . 1 1 . . . Recycling Unit Hacks 2 | . . . . . . . . . . . . . . 2 . . . Report Inventory 2 | . . . . . . . . . . . . . . 2 . . . Scanalyzer . | . . . . . . . . . . . . . . . . . . Garrison Access Hacks . | . . . . . . . . . . . . . . . . . . Unauthorized Hacks 28 | . 5 . 6 . . . 6 5 . . . . 1 4 . . 1 Terminals 25 | . 4 . 4 . . . 6 5 . . . . 1 4 . . 1 Assimilate 1 | . . . . . . . . 1 . . . . . . . . . Botnet 22 | . 4 . 4 . . . 4 4 . . . . 1 4 . . 1 Operators 2 | . . . . . . . 2 . . . . . . . . . . Fabricators . | . . . . . . . . . . . . . . . . . . Repair Stations . | . . . . . . . . . . . . . . . . . . Recycling Units 3 | . 1 . 2 . . . . . . . . . . . . . . Tunnel 3 | . 1 . 2 . . . . . . . . . . . . . . Scanalyzers . | . . . . . . . . . . . . . . . . . . Garrison Access . | . . . . . . . . . . . . . . . . . . Data Cores Recovered 1 | . . . 1 . . . . . . . . . . . . . . Used 1 | . . . 1 . . . . . . . . . . . . . . Hacking Detections 50 | . 8 . 9 . . . 10 8 . . . . 2 11 . . 2 Full Trace Events 16 | . 3 . 4 . . . 4 2 . . . . . 3 . . . Feedback Events . | . . . . . . . . . . . . . . . . . . Feedback Blocked . | . . . . . . . . . . . . . . . . . . Robot Schematics Acquired 4 | . . . . . . . . . . . 4 . . . . . . Robots Built . | . . . . . . . . . . . . . . . . . . Authchips . | . . . . . . . . . . . . . . . . . . Time . | . . . . . . . . . . . . . . . . . . Total Robot Build Rating . | . . . . . . . . . . . . . . . . . . Part Schematics Acquired 9 | . . . . . . . . . . . 9 . . . . . . Parts Built . | . . . . . . . . . . . . . . . . . . Authchips . | . . . . . . . . . . . . . . . . . . Time . | . . . . . . . . . . . . . . . . . . Total Part Build Rating . | . . . . . . . . . . . . . . . . . . Parts Repaired 3 | . . . . . . . . 1 . . . . 1 1 . . . Time 117 | . . . . . . . . 60 . . . . 19 38 . . . Parts Recycled . | . . . . . . . . . . . . . . . . . . Recycled Matter . | . . . . . . . . . . . . . . . . . . Retrieved Matter . | . . . . . . . . . . . . . . . . . . Retrieved Components . | . . . . . . . . . . . . . . . . . . Parts Scanalyzed . | . . . . . . . . . . . . . . . . . . Part Schematics Acquired . | . . . . . . . . . . . . . . . . . . Parts Damaged . | . . . . . . . . . . . . . . . . . . Bothacking | -11 -10 -10 -9 -9 -9 -8 -8 -7 -7 -7 -7 -6 -6 -6 -6 -6 -6 ------------ Run | Scr Mat Min Mat Min Exi Min Mat Fac Low Low Dat Pro Fac Ext Cet Arc Hub Used RIF Installer . | . . . . . . . . . . . . . . . . . . Robots Hacked . | . . . . . . . . . . . . . . . . . . Non-combat . | . . . . . . . . . . . . . . . . . . Combat . | . . . . . . . . . . . . . . . . . . Robot Hacks Applied . | . . . . . . . . . . . . . . . . . . Relay Couplers Released . | . . . . . . . . . . . . . . . . . . Fabnet Peak Effective % . | . . . . . . . . . . . . . . . . . . Robots Rewired 11 | . . . . . . . . . . . . . . 11 . . . Allies Hacked . | . . . . . . . . . . . . . . . . . . Hacks Repelled . | . . . . . . . . . . . . . . . . . . Allies | -11 -10 -10 -9 -9 -9 -8 -8 -7 -7 -7 -7 -6 -6 -6 -6 -6 -6 -------- Run | Scr Mat Min Mat Min Exi Min Mat Fac Low Low Dat Pro Fac Ext Cet Arc Hub Total Allies 18 | . 1 . . . . . . 3 . . . 1 . 13 . . . Largest Group 9 | . 1 1 1 1 1 1 1 4 4 4 2 3 2 9 4 1 1 Highest-Rated Group 345 | . 62 59 64 66 66 66 80 180 180 180 115 215 194 345 221 129 129 Highest-Rated Ally 129 | . 62 59 64 66 66 66 80 87 87 87 87 96 125 125 128 129 129 Total Orders . | . . . . . . . . . . . . . . . . . . Ally Attacks 499 | . 18 4 53 8 . 6 68 23 28 13 . 14 72 76 58 11 47 Total Damage 17142 | . 210 50 1332 142 . 102 1930 1111 627 250 . 456 4779 2689 1028 454 1982 Kills 156 | . 6 2 19 1 . 2 25 13 4 2 . 6 33 19 10 1 13 Allies Corrupted . | . . . . . . . . . . . . . . . . . . Allies Melted 1 | . . . . . . . . . . . . . . 1 . . . Intel | -11 -10 -10 -9 -9 -9 -8 -8 -7 -7 -7 -7 -6 -6 -6 -6 -6 -6 ------- Run | Scr Mat Min Mat Min Exi Min Mat Fac Low Low Dat Pro Fac Ext Cet Arc Hub Robot Analysis Total 13 | . 4 . 2 . . . 2 2 . . . . . 3 . . . Derelict Logs Recovered 5 | . . . . 1 . . . . 1 1 . 2 . . . . . Drone Launches . | . . . . . . . . . . . . . . . . . . Drone Recoveries . | . . . . . . . . . . . . . . . . . . Exploration | -11 -10 -10 -9 -9 -9 -8 -8 -7 -7 -7 -7 -6 -6 -6 -6 -6 -6 ------------- Run | Scr Mat Min Mat Min Exi Min Mat Fac Low Low Dat Pro Fac Ext Cet Arc Hub Turns Passed 11811 | . 994 569 978 229 219 82 1070 1539 621 553 219 849 1408 1286 527 202 466 Spaces Moved 7187 | 1 650 297 739 206 208 60 787 1121 422 311 126 483 673 579 235 105 184 Core . | . . . . . . . . . . . . . . . . . . Treads 2953 | . . . . . . . . . 257 311 126 483 673 579 235 105 184 Legs 948 | 1 650 297 . . . . . . . . . . . . . . . Wheels 3286 | . . . 739 206 208 60 787 1121 165 . . . . . . . . Hover . | . . . . . . . . . . . . . . . . . . Flight . | . . . . . . . . . . . . . . . . . . Fastest Speed 86 | 120 120 190 105 105 105 105 86 90 93 170 170 170 163 170 160 166 166 Average Speed 136 | 120 125 190 105 105 105 105 99 108 139 170 170 170 166 170 168 166 166 Slowest Speed 250 | 120 190 190 105 105 105 105 105 130 170 170 170 170 170 170 250 166 166 Overloaded Moves . | . . . . . . . . . . . . . . . . . . Propulsion Burnouts . | . . . . . . . . . . . . . . . . . . Robots Hopped . | . . . . . . . . . . . . . . . . . . Cave-ins Triggered . | . . . . . . . . . . . . . . . . . . Exploration Rate (%) 55 | 2 95 71 72 54 59 13 69 33 67 54 70 61 20 76 74 82 20 Regions Visited 17 Branch Regions 12 Pre-discovered Areas 5 | . 1 . 2 . . . . . 1 . 1 . . . . . . Known Exits Taken 5 | . 1 . 1 . . . 1 1 . . . . 1 . . . . Unknown Exits Taken 12 | 1 . 1 . 1 1 1 . . 1 1 1 1 . 1 1 1 . Scrap Searched 9 | . . . . . . . . . 3 2 . 4 . . . . . Spaces Dug 14 | . 1 . . . . . 12 . . . . . 1 . . . . Terrain Destroyed 181 | . 1 . 47 18 . . 41 8 . . . . 30 11 22 2 1 Melee 2 | . 1 . . . . . . . . . . . 1 . . . . Projectile 8 | . . . 2 . . . . . . . . . . 1 3 1 1 AOE 169 | . . . 45 18 . . 41 8 . . . . 29 10 18 . . Terrain Rammed . | . . . . . . . . . . . . . . . . . . Walls Destroyed . | . . . . . . . . . . . . . . . . . . Machines Disabled . | . . . . . . . . . . . . . . . . . . Actions | -11 -10 -10 -9 -9 -9 -8 -8 -7 -7 -7 -7 -6 -6 -6 -6 -6 -6 --------- Run | Scr Mat Min Mat Min Exi Min Mat Fac Low Low Dat Pro Fac Ext Cet Arc Hub Total 8436 | . 778 300 856 211 209 70 971 1347 439 326 131 496 823 774 314 119 272 Wait 578 | . 80 1 38 . . 3 81 159 . 12 6 5 59 61 19 6 48 Move 7170 | . 649 296 738 205 207 59 786 1120 421 310 125 482 672 578 234 104 184 Hop . | . . . . . . . . . . . . . . . . . . Pick Up 58 | . 7 . 11 . 1 1 11 4 3 . . 1 3 6 7 1 2 Fast Attach 55 | . 3 . 7 . . . 8 12 . . . . 11 6 8 . . Attach 18 | . . . 5 . . . 2 1 . . . . 5 4 . . 1 Detach 8 | . . . 2 . . . 1 . . . . . 2 . 3 . . Swap 58 | . 3 1 6 2 . 2 9 5 5 . . . 7 12 4 . 2 Drop 85 | . 8 . 7 . 1 1 21 6 4 . . 1 6 13 14 1 2 Fire 355 | . 24 2 42 4 . 4 50 40 6 4 . 7 57 50 25 7 33 Melee 4 | . 3 . . . . . . . . . . . 1 . . . . Ram 2 | . . . . . . . 2 . . . . . . . . . . Kick 1 | . 1 . . . . . . . . . . . . . . . . Crush . | . . . . . . . . . . . . . . . . . . Escape Stasis . | . . . . . . . . . . . . . . . . . . Rewire 44 | . . . . . . . . . . . . . . 44 . . . Trap . | . . . . . . . . . . . . . . . . . . Miscellaneous . | . . . . . . . . . . . . . . . . . . Route ------- -11/Scrapyard -10/Materials (discovered 5 exits: *Mat x3 / *Min x2) -10/Mines (discovered 2 exits: *Mat x2) -9/Materials (discovered 3 exits: *Mat / *Min x2) -9/Mines -9/Exiles -8/Mines -8/Materials (discovered 4 exits: *Fac x2 / *Sto x2) -7/Factory (discovered 3 exits: *Fac / *Low x2) -7/Lower Caves -7/Lower Caves -7/Data Miner -6/Proximity Caves -6/Factory (discovered 5 exits: Fac / Low x2 / *Ext x2) -6/Extension (discovered 3 exits: *Fac x2 / *Cet) -6/Cetus (discovered 3 exits: *Fac x2 / *Arc) -6/Archives (discovered 2 exits: *Hub x2) -6/Hub_04(d) (discovered 4 exits: Fac x4) History --------- Turn | Location | Event 1 | -11/Scrapyard | Discovered new exit (range 0) 1 | -11/Scrapyard | Entered Materials 99 | -10/Materials | Discovered new exit (range 15) 301 | -10/Materials | Build established: Mutant 311 | -10/Materials | Discovered new exit (range 9) 314 | -10/Materials | Identified exit to Mines 388 | -10/Materials | Discovered new exit (range 13) 585 | -10/Materials | Discovered new exit (range 5) 995 | -10/Materials | Entered Mines 1005 | -10/Mines | Met a Derelict bent on vengeance 1451 | -10/Mines | Discovered new exit (range 7) 1539 | -10/Mines | Discovered new exit (range 10) 1564 | -10/Mines | Entered Materials 1564 | -9/Materials | Evolved 2 slots: Utility x1, Weapon x1 1878 | -9/Materials | Build established: Gunner 1888 | -9/Materials | Discovered new exit (range 16) 2285 | -9/Materials | Discovered new exit (range 16) 2295 | -9/Materials | Identified exit to Mines 2542 | -9/Materials | Entered Mines 2608 | -9/Mines | Received a Rocket Launcher from a helpful Derelict 2719 | -9/Mines | Learned 2 Materials zone layouts 2765 | -9/Mines | Deemed a non-threat by the Exiles lab entrance 2765 | -9/Mines | Discovered new exit (range 5) 2771 | -9/Mines | Entered Exiles 2798 | -9/Exiles | Met 8R-AWN 2816 | -9/Exiles | Met EX-HEX 2823 | -9/Exiles | Build established: Mutant 2844 | -9/Exiles | Met EX-BIN 2857 | -9/Exiles | Aligned with FarCom system 2858 | -9/Exiles | Given EX-Vault access code 2882 | -9/Exiles | Opened EX-Vault 2891 | -9/Exiles | Found Superbattery 2915 | -9/Exiles | Warned to stay clear of 0b10 Research branches 2944 | -9/Exiles | Met EX-DEC 2981 | -9/Exiles | Discovered new exit (range 10) 2990 | -9/Exiles | Left Exiles lab with Superbattery 2990 | -9/Exiles | Entered Mines 3049 | -8/Mines | Core integrity fell below 50% 3057 | -8/Mines | Discovered new exit (range 14) 3072 | -8/Mines | Entered Materials 3072 | -8/Materials | Evolved 2 slots: Propulsion x1, Utility x1 3073 | -8/Materials | Identified exit to Factory 3426 | -8/Materials | Build established: Skirmisher 3442 | -8/Materials | Discovered new exit (range 5) 3756 | -8/Materials | Central database locked down 3872 | -8/Materials | First assault squad dispatched 4096 | -8/Materials | Identified exit to Storage 4117 | -8/Materials | Discovered exit to Factory (range 11) 4142 | -8/Materials | Entered Factory 4142 | -7/Factory | Evolved 2 slots: Utility x2 4542 | -7/Factory | First assault squad dispatched 4656 | -7/Factory | Lost 3 parts (2u1w) 4714 | -7/Factory | Discovered new exit (range 11) 4939 | -7/Factory | Repaired Prc. Beam Rifle? 5263 | -7/Factory | Build established: Hacker-Skirmisher 5475 | -7/Factory | Allied Derelicts emerged from ambush trap array 5530 | -7/Factory | Discovered new exit (range 7) 5573 | -7/Factory | Central database locked down 5573 | -7/Factory | Identified exit to Lower Caves 5681 | -7/Factory | Entered Lower Caves 5681 | -7/Lower Caves | Accompanied by 3 allies 5975 | -7/Lower Caves | Build established: Hacker-Gunner 6283 | -7/Lower Caves | Discovered new exit (range 10) 6302 | -7/Lower Caves | Entered another Lower Caves area 6302 | -7/Lower Caves | Accompanied by 3 allies 6313 | -7/Lower Caves | Learned Factory stockpile data 6465 | -7/Lower Caves | Build established: Hacker-Tank 6826 | -7/Lower Caves | Discovered new exit (range 10) 6855 | -7/Lower Caves | Entered Data Miner 6855 | -7/Data Miner | Accompanied by 1 ally 6855 | -7/Data Miner | Discovered new exit (range 6) 6888 | -7/Data Miner | Met Data Miner 6925 | -7/Data Miner | Learned location of Section 7 (-2) 6925 | -7/Data Miner | Acquired the access code to Warlord's prototype stash 6961 | -7/Data Miner | Received God Mode back door access code from Data Miner 7074 | -7/Data Miner | Entered Proximity Caves 7074 | -6/Proximity Caves | Accompanied by 1 ally 7091 | -6/Proximity Caves | Escorted by Enhanced Grunt 7122 | -6/Proximity Caves | Attracted the attention of an 0b10 checkpoint 7536 | -6/Proximity Caves | Learned location of 1 exit from Factory 7629 | -6/Proximity Caves | Learned Factory stockpile data 7813 | -6/Proximity Caves | Discovered new exit (range 10) 7923 | -6/Proximity Caves | Entered Factory 7923 | -6/Factory | Accompanied by 1 ally 7923 | -6/Factory | Evolved 2 slots: Propulsion x1, Utility x1 7924 | -6/Factory | Identified exit to Factory 8212 | -6/Factory | Build established: Hacker-Skirmisher 8357 | -6/Factory | Garrison activated, responded to threat 8395 | -6/Factory | Incoming assault squad redirected 8623 | -6/Factory | First assault squad dispatched 8641 | -6/Factory | Incoming assault squad redirected 8798 | -6/Factory | Lost 4 parts (1p1u2w) 8923 | -6/Factory | Identified exit to Lower Caves 8923 | -6/Factory | Identified exit to Extension 8993 | -6/Factory | Incoming assault squad redirected 9069 | -6/Factory | Build established: Skirmisher 9218 | -6/Factory | Repaired Arm. Treads 9331 | -6/Factory | Entered Extension 9340 | -6/Extension | Rescued a captive Derelict 9344 | -6/Extension | Rescued a captive Derelict 9346 | -6/Extension | Rescued a captive Derelict 9350 | -6/Extension | Rescued a captive Derelict 9357 | -6/Extension | Rescued a captive Derelict 9359 | -6/Extension | Rescued a captive Derelict 9364 | -6/Extension | Rescued a captive Derelict 9429 | -6/Extension | Build established: Scavenger-Gunner 9671 | -6/Extension | Incoming investigation squad redirected 9923 | -6/Extension | Incoming investigation squad redirected 9956 | -6/Extension | Repaired Arm. Treads 9963 | -6/Extension | Spotted B-75 Beast 9991 | -6/Extension | Spotted B-75 Beast 10008 | -6/Extension | Core integrity fell below 50% 10008 | -6/Extension | Destroyed B-75 Beast 10035 | -6/Extension | Destroyed B-75 Beast 10064 | -6/Extension | Discovered exit to Factory (range 15) 10075 | -6/Extension | Extracted ID and sensor layout for unrecognized location from A7's data core 10230 | -6/Extension | Incoming investigation squad redirected 10343 | -6/Extension | Incoming investigation squad redirected 10381 | -6/Extension | First assault squad dispatched 10410 | -6/Extension | Incoming assault squad redirected 10437 | -6/Extension | Incoming assault squad redirected 10592 | -6/Extension | Discovered exit to Factory (range 10) 10593 | -6/Extension | Discovered new exit (range 6) 10617 | -6/Extension | Entered Cetus 10617 | -6/Cetus | Accompanied by 3 allies 10643 | -6/Cetus | Spotted Cetus Guard 10644 | -6/Cetus | Spotted Cetus Guard 10648 | -6/Cetus | Spotted Cetus Guard 10648 | -6/Cetus | Allies destroyed Cetus Guard 10653 | -6/Cetus | Allies destroyed Cetus Guard 10656 | -6/Cetus | Allies destroyed Cetus Guard 10757 | -6/Cetus | Discovered exit to Factory (range 16) 10847 | -6/Cetus | Destroyed 7 combat bots 10935 | -6/Cetus | Discovered new exit (range 15) 10983 | -6/Cetus | Destroyed Cetus Guard 10986 | -6/Cetus | Spotted Cetus Guard 10987 | -6/Cetus | Allies destroyed Cetus Guard 10987 | -6/Cetus | Spotted Cetus Guard 10990 | -6/Cetus | Allies destroyed Cetus Guard 11021 | -6/Cetus | Discovered exit to Factory (range 15) 11030 | -6/Cetus | Met Revision 17 11144 | -6/Cetus | Entered Archives 11206 | -6/Archives | Unable to access archive contents 11210 | -6/Archives | Discovered new exit (range 15) 11264 | -6/Archives | Discovered new exit (range 16) 11346 | -6/Archives | Entered Hub_04(d) 11630 | -6/Hub_04(d) | Core integrity fell below 20% 11780 | -6/Hub_04(d) | Garrison activated, responded to threat 11812 | -6/Hub_04(d) | Core destroyed Last Messages --------------- 11797_ Destroyed Dynamic Insulation System. 11798_ Penetrated by Slug. 11798_ K-01 Serf destroyed. 11798_ K-01 Serf collects debris. 11800_ Slug penetrates Wall. 11801_ K-01 Serf collects debris. 11802_ Slug penetrates H-61 Shepherd. 11802_ K-01 Serf collects debris. 11803_ H-61 Shepherd destroyed. 11804_ K-01 Serf collects debris. 11805_ Slug penetrates X-72 Disruptor. 11805_ K-01 Serf destroyed. 11805_ Slug penetrates X-72 Disruptor. 11805_ X-72 Disruptor suffers critical hit (Destroy). 11807_ K-01 Serf collects debris. 11809_ Slug penetrates Wall. 11809_ Slug penetrates X-72 Disruptor. 11809_ A-15 Conveyor suffers critical hit (Destroy). 11809_ A-15 Conveyor destroyed. 11810_ K-01 Serf collects debris. Map ----- +----------------------------------------------------+ | ?????????????????????????????????????????????????? | | ?????????????????????????????????????????????????? | | ?????????????????????????????????????????????????? | | ?????????????????????????????????????????????????? | | ?????????????????????????????????????????????????? | | ?????????????????????????????????????????????????? | | ?????????????????????????????????????????????????? | | ?????????????????????????????????????????????????? | | ?????????????????????????????????????